bitfinex/quotes_BTCUSD_20250916
["timestamp","ask_amount","ask_price","bid_price","bid_amount"]
[1758000517863,0.4533505,115880.0,115870.0,0.90461733]
[1758000517864,0.4813305,115880.0,115870.0,0.90461733]
[1758000522052,0.4813305,115880.0,115870.0,0.90451733]
[1758000523103,0.4814305,115880.0,115870.0,0.87939075]
[1758000523400,0.4814305,115880.0,115870.0,0.90451733]
[1758000525894,0.50736787,115880.0,115870.0,0.90451733]
[1758000526334,0.50736787,115880.0,115870.0,0.87939075]
[1758000526558,0.50736787,115880.0,115870.0,0.73495075]
[1758000526750,0.50736787,115880.0,115870.0,0.87935075]
[1758000532462,0.50736787,115880.0,115870.0,0.87085075]
[1758000554152,0.15601737,115880.0,115870.0,0.87085075]
[1758000554624,0.48464787,115880.0,115870.0,0.89745075]
[1758000557652,0.48464787,115880.0,115870.0,0.75305075]
[1758000557867,0.50842787,115880.0,115870.0,0.89529075]
[1758000558285,0.15707737,115880.0,115870.0,0.75097075]
[1758000558521,0.50842787,115880.0,115870.0,0.87077075]
[1758000558943,0.50842787,115880.0,115870.0,0.72645075]
[1758000559155,0.50842787,115880.0,115870.0,0.87077075]
[1758000565989,0.47938787,115880.0,115870.0,0.89737075]
[1758000566962,0.48234787,115880.0,115870.0,0.89737075]
[1758000567693,0.50823787,115880.0,115870.0,0.89737075]
[1758000567906,0.50823787,115880.0,115870.0,0.89529075]
[1758000568628,0.50823787,115880.0,115870.0,0.75097075]
[1758000568756,0.50823787,115880.0,115870.0,0.89529075]
[1758000570201,0.50823787,115880.0,115870.0,0.87077075]
[1758000571529,0.50823787,115880.0,115870.0,0.72645075]
[1758000571748,0.50823787,115880.0,115870.0,0.87077075]
[1758000573839,0.46931381,115880.0,115870.0,0.87077075]
[1758000574547,0.46931381,115880.0,115870.0,0.47077075]
[1758000574791,0.46931381,115880.0,115870.0,0.32645075]
[1758000575038,0.46931381,115880.0,115870.0,0.47073075]
[1758000575915,0.46931381,115880.0,115870.0,0.49495075]
[1758000577049,0.46931381,115880.0,115870.0,0.47073075]
[1758000577394,0.12803737,115880.0,115870.0,0.52203733]
[1758000578004,0.12803737,115880.0,115870.0,0.83576377]
[1758000578228,0.102,115880.0,115870.0,0.83576377]
[1758000578446,0.102,115880.0,115870.0,0.52333733]
[1758000578661,0.102,115880.0,115870.0,1.23576377]
[1758000579773,0.102,115880.0,115870.0,1.23586377]
[1758000581475,0.102,115880.0,115870.0,1.24436377]
[1758000582551,0.102,115880.0,115870.0,1.51206377]
[1758000583152,0.101,115880.0,115870.0,1.51206377]
[1758000583379,0.1,115880.0,115870.0,1.51206377]
[1758000583786,0.101,115880.0,115870.0,1.51206377]
[1758000584216,0.1,115880.0,115870.0,1.51206377]
[1758000588271,0.1,115880.0,115870.0,1.24436377]
[1758000589796,0.1,115880.0,115870.0,1.51206377]
[1758000593270,0.1,115880.0,115870.0,1.51202377]
[1758000595461,0.1,115880.0,115870.0,1.51198377]
[1758000596448,0.1,115880.0,115870.0,1.51068377]
[1758000596657,0.1,115880.0,115870.0,1.36648377]
[1758000596900,0.1,115880.0,115870.0,1.36778377]
[1758000597095,0.1,115880.0,115870.0,1.51068377]
[1758000598598,0.1,115880.0,115870.0,1.50218377]
[1758000600590,0.1,115880.0,115870.0,1.51198377]
[1758000601866,0.1,115880.0,115870.0,1.51068377]
[1758000602282,0.1,115880.0,115870.0,1.51198377]
[1758000602498,0.1,115880.0,115870.0,1.51068377]
[1758000603124,0.1,115880.0,115870.0,1.19825733]
[1758000603333,0.1,115880.0,115870.0,1.51068377]
[1758000603754,0.1,115880.0,115870.0,1.51198377]
[1758000604171,0.1,115880.0,115870.0,1.51068377]
[1758000604581,0.10304,115880.0,115870.0,1.19825733]
[1758000604791,0.10304,115880.0,115870.0,1.36648377]
[1758000604999,0.10304,115880.0,115870.0,1.51068377]
[1758000605192,0.1,115880.0,115870.0,1.51068377]
[1758000605848,0.1,115880.0,115870.0,1.50218377]
[1758000606525,0.1,115880.0,115870.0,1.71080377]
[1758000607142,0.1,115880.0,115870.0,1.39837733]
[1758000607347,0.1,115880.0,115870.0,1.71080377]
[1758000609701,0.1,115880.0,115870.0,1.71930377]
[1758000610408,0.0004,115890.0,115880.0,0.82257179]
[1758000610632,1e-08,115890.0,115880.0,1.07934531]
[1758000610854,1e-08,115890.0,115880.0,1.08138531]
[1758000611078,1e-08,115890.0,115880.0,1.48138531]
[1758000612208,1e-08,115890.0,115880.0,1.48238531]
[1758000612447,1e-08,115890.0,115880.0,1.48248531]
[1758000612666,1e-08,115890.0,115880.0,1.82248531]
[1758000613156,1e-08,115890.0,115880.0,1.36525887]
[1758000613395,1e-08,115890.0,115880.0,1.50911887]
[1758000614047,1e-08,115890.0,115880.0,1.51011887]
[1758000615827,1e-08,115890.0,115880.0,1.05253243]
[1758000616042,1e-08,115890.0,115880.0,1.19769243]
[1758000616261,1e-08,115890.0,115880.0,1.51011887]
[1758000620740,1e-08,115890.0,115880.0,1.51141887]
[1758000620948,1e-08,115890.0,115880.0,1.77911887]
[1758000621594,1e-08,115890.0,115880.0,1.51141887]
[1758000622438,1e-08,115890.0,115880.0,1.77911887]
[1758000622888,1e-08,115890.0,115880.0,2.09154531]
[1758000626409,1e-08,115890.0,115880.0,2.10004531]
[1758000633858,1e-08,115890.0,115880.0,2.17752117]
[1758000637334,1e-08,115890.0,115880.0,2.17414117]
[1758000638993,1e-08,115890.0,115880.0,1.95644117]
[1758000639240,0.02324,115930.0,115920.0,0.17253278]
[1758000639484,0.0001,115930.0,115920.0,0.33534532]
[1758000639666,0.35124437,115930.0,115920.0,0.33534532]
[1758000639916,0.4003135,115930.0,115920.0,0.33534532]
[1758000640138,0.4003135,115930.0,115920.0,0.88030532]
[1758000640352,0.4003135,115930.0,115920.0,0.73534532]
[1758000640575,1.35040992,115930.0,115920.0,0.16281254]
[1758000640810,1.28716368,115930.0,115920.0,0.15431254]
[1758000641023,1.28716368,115930.0,115920.0,0.29939254]
[1758000641240,1.28816368,115930.0,115920.0,0.08799254]
[1758000641462,1.28816368,115930.0,115920.0,0.23311254]
[1758000641683,1.29116368,115930.0,115920.0,0.23311254]
[1758000641896,1.29116368,115930.0,115920.0,0.08799254]
[1758000642144,1.29116368,115930.0,115920.0,0.23311254]
[1758000643529,1.29116368,115930.0,115920.0,0.14558902]
[1758000644363,1.29016368,115930.0,115920.0,0.14558902]
[1758000644569,1.28716368,115930.0,115920.0,0.14558902]
[1758000644776,1.29316368,115930.0,115920.0,0.14558902]
[1758000646081,1.26997576,115930.0,115920.0,0.14558902]
[1758000649061,1.33029021,115930.0,115920.0,0.14558902]
[1758000649733,1.33029021,115930.0,115920.0,0.00046902]
[1758000655196,1.26997576,115930.0,115920.0,0.00046902]
[1758000657403,1.62112013,115930.0,115920.0,0.00046902]
[1758000657602,1.67710783,115930.0,115920.0,0.00046902]
[1758000657816,1.64778325,115930.0,115920.0,0.00046902]
[1758000660293,1.64578325,115930.0,115920.0,0.00046902]
[1758000660500,1.64778325,115930.0,115920.0,0.00046902]
[1758000660752,1.73421741,115930.0,115920.0,0.00046902]
[1758000660957,1.73021741,115930.0,115920.0,0.00046902]
[1758000661202,1.80334399,115930.0,115920.0,0.00046902]
[1758000661370,1.80734399,115930.0,115920.0,0.00046902]
[1758000662170,1.95222399,115930.0,115920.0,0.00046902]
[1758000662348,1.92556087,115930.0,115920.0,0.00046902]
[1758000662996,1.95222399,115930.0,115920.0,0.00046902]
[1758000663199,0.51254766,115910.0,115900.0,0.14196]
[1758000663406,0.51256255,115900.0,115890.0,0.06953196]
[1758000663612,0.53519255,115900.0,115890.0,0.15752513]
[1758000663814,1.23748129,115900.0,115890.0,0.15752513]
[1758000664449,1.23748129,115900.0,115890.0,0.08799317]
[1758000664777,1.26342202,115900.0,115890.0,0.08799317]
[1758000665292,1.27440251,115900.0,115890.0,0.08899317]
[1758000665675,1.27440251,115900.0,115890.0,0.08799317]
[1758000667797,1.27540251,115900.0,115890.0,0.08799317]
[1758000668638,1.27640251,115900.0,115890.0,0.08799317]
[1758000672178,1.26542202,115900.0,115890.0,0.08799317]
[1758000672423,0.89174765,115900.0,115890.0,0.11096317]
[1758000673863,0.89174765,115900.0,115890.0,0.28354061]
[1758000674070,0.02804073,115900.0,115890.0,0.28354061]
[1758000674278,0.3791851,115900.0,115890.0,0.28354061]
[1758000674485,0.36804073,115900.0,115890.0,0.28354061]
[1758000676266,0.7191851,115900.0,115890.0,0.28354061]
[1758000677715,0.36804073,115900.0,115890.0,0.28354061]
[1758000678210,0.25145573,115900.0,115890.0,0.28354061]
[1758000678434,0.52379203,115910.0,115900.0,0.17256255]
[1758000678650,0.52379203,115910.0,115900.0,0.42781607]
[1758000679275,0.54972899,115910.0,115900.0,0.42781607]
[1758000679485,0.02603696,115910.0,115900.0,0.42781607]
[1758000679699,0.37718133,115910.0,115900.0,0.42681607]
[1758000680147,0.02603696,115910.0,115900.0,0.42681607]
[1758000680569,0.02803696,115910.0,115900.0,0.42681607]
[1758000680791,0.02803696,115910.0,115900.0,0.77796044]
[1758000681933,0.02703696,115910.0,115900.0,0.77796044]
[1758000682144,0.02693696,115910.0,115900.0,0.77796044]
[1758000682359,0.001,115910.0,115900.0,0.81258702]
[1758000682570,0.37717507,115930.0,115920.0,0.17253278]
[1758000682791,0.37717507,115930.0,115920.0,0.4941063]
[1758000683630,0.37817507,115930.0,115920.0,0.4941063]
[1758000684052,0.37917507,115930.0,115920.0,0.4941063]
[1758000685092,0.0280307,115930.0,115920.0,0.4941063]
[1758000685339,0.37817507,115930.0,115920.0,0.4941063]
[1758000685495,0.38017507,115930.0,115920.0,0.4941063]
[1758000685703,0.37817507,115930.0,115920.0,0.4941063]
[1758000685910,0.55069296,115930.0,115920.0,0.3493463]
[1758000686112,0.55069296,115930.0,115920.0,0.4940663]
[1758000686486,0.55169296,115930.0,115920.0,0.4940663]
[1758000686914,0.55169296,115930.0,115920.0,0.17681352]
[1758000687117,0.55169296,115930.0,115920.0,0.32153352]
[1758000687519,0.20054859,115930.0,115920.0,0.32153352]
[1758000687723,0.57422296,115930.0,115920.0,0.15384352]
[1758000687945,0.57422296,115930.0,115920.0,0.29856352]
[1758000688542,0.55169296,115930.0,115920.0,0.4710963]
[1758000688768,0.55169296,115930.0,115920.0,0.4940663]
[1758000689012,0.55169296,115930.0,115920.0,0.3493463]
[1758000689185,0.55169296,115930.0,115920.0,0.4940263]
[1758000690321,0.37917507,115930.0,115920.0,0.3493463]
[1758000690530,0.37917507,115930.0,115920.0,0.4940263]
[1758000690738,0.37917507,115930.0,115920.0,0.4939863]
[1758000690739,0.0280307,115930.0,115920.0,0.4939863]
[1758000690949,0.37917507,115930.0,115920.0,0.4939863]
[1758000691162,0.37917507,115930.0,115920.0,0.3493463]
[1758000691511,0.37917507,115930.0,115920.0,0.4939863]
[1758000692494,0.0280307,115930.0,115920.0,0.4939863]
[1758000692635,0.37917507,115930.0,115920.0,0.4939863]
[1758000693166,0.37917507,115930.0,115920.0,0.3493463]
[1758000693398,0.37917507,115930.0,115920.0,0.4939863]
[1758000694662,0.0280307,115930.0,115920.0,0.4939863]
[1758000695269,0.37917507,115930.0,115920.0,0.3493463]
[1758000695474,0.37917507,115930.0,115920.0,0.4939463]
[1758000695674,0.37917507,115930.0,115920.0,0.3493463]
[1758000695883,0.0280307,115930.0,115920.0,0.3493463]
[1758000696113,0.0280307,115930.0,115920.0,0.4939463]
[1758000697495,0.0280307,115930.0,115920.0,0.4959963]
[1758000697786,0.0280307,115930.0,115920.0,0.3526963]
[1758000697989,0.0280307,115930.0,115920.0,0.4972563]
[1758000699431,0.0260307,115930.0,115920.0,0.4972563]
[1758000699654,0.0270307,115930.0,115920.0,0.4972563]
[1758000699883,0.0280307,115930.0,115920.0,0.4972563]
[1758000700089,0.0270307,115930.0,115920.0,0.4972563]
[1758000700296,0.0260307,115930.0,115920.0,0.4972563]
[1758000701340,0.0260307,115930.0,115920.0,0.4969563]
[1758000701551,0.0260307,115930.0,115920.0,0.4982563]
[1758000702710,0.0260307,115930.0,115920.0,0.81037061]
[1758000702956,0.00917819,115940.0,115930.0,0.17251789]
[1758000703201,0.03510733,115940.0,115930.0,0.40456141]
[1758000703435,0.03510733,115940.0,115930.0,0.83071141]
[1758000703963,0.03610733,115940.0,115930.0,0.68489141]
[1758000704184,0.03615438,115940.0,115930.0,0.82941141]
[1758000704766,0.04119438,115940.0,115930.0,0.66004141]
[1758000704975,0.37769869,115940.0,115930.0,0.66004141]
[1758000705357,0.37869869,115940.0,115930.0,0.80452141]
[1758000705580,0.37869869,115940.0,115930.0,0.66004141]
[1758000705780,0.5512017,115940.0,115930.0,0.80452141]
[1758000705952,0.37869869,115940.0,115930.0,0.80452141]
[1758000706350,0.37869869,115940.0,115930.0,0.82732141]
[1758000706625,0.35430869,115940.0,115930.0,0.82732141]
[1758000707040,0.37869869,115940.0,115930.0,0.82732141]
[1758000707610,0.37869869,115940.0,115930.0,0.80452141]
[1758000708448,0.35430869,115940.0,115930.0,0.82937141]
[1758000709387,0.37869869,115940.0,115930.0,0.82732141]
[1758000710136,0.35430869,115940.0,115930.0,0.82937141]
[1758000711344,0.35430869,115940.0,115930.0,0.68489141]
[1758000711552,0.37869869,115940.0,115930.0,0.80448141]
[1758000711754,0.37869869,115940.0,115930.0,0.82728141]
[1758000712256,0.04219438,115940.0,115930.0,0.82933141]
[1758000712490,0.35430869,115940.0,115930.0,0.82933141]
[1758000715023,0.37869869,115940.0,115930.0,0.82728141]
[1758000715149,0.35430869,115940.0,115930.0,0.82933141]
[1758000715699,0.34926869,115940.0,115930.0,0.82933141]
[1758000717787,0.32648955,115940.0,115930.0,0.82933141]
[1758000718573,0.35144955,115940.0,115930.0,0.80448141]
[1758000718797,0.35144955,115940.0,115930.0,0.82945141]
[1758000719858,0.35144955,115940.0,115930.0,0.82937141]
[1758000720061,0.35144955,115940.0,115930.0,0.80440141]
[1758000720676,0.35144955,115940.0,115930.0,0.82725141]
[1758000721530,0.32847955,115940.0,115930.0,0.82933141]
[1758000721744,0.35321955,115940.0,115930.0,0.80440141]
[1758000722338,0.32847955,115940.0,115930.0,0.82933141]
[1758000722894,0.32847955,115940.0,115930.0,0.82725141]
[1758000723095,0.35321955,115940.0,115930.0,0.82725141]
[1758000724960,0.04110524,115940.0,115930.0,0.82933141]
[1758000725108,0.35321955,115940.0,115930.0,0.82933141]
[1758000725320,0.32847955,115940.0,115930.0,0.82933141]
[1758000726625,0.01122524,115940.0,115930.0,0.82933141]
[1758000726841,0.32333955,115940.0,115930.0,0.82933141]
[1758000727995,0.32831955,115940.0,115930.0,0.82933141]
[1758000728533,0.32634955,115940.0,115930.0,0.82933141]
[1758000728733,0.01122524,115940.0,115930.0,0.82933141]
[1758000730381,0.01423524,115940.0,115930.0,0.82933141]
[1758000731679,0.01620524,115940.0,115930.0,0.82933141]
[1758000732347,0.01423524,115940.0,115930.0,0.82933141]
[1758000732763,0.32333955,115940.0,115930.0,0.82933141]
[1758000733346,0.32634955,115940.0,115930.0,0.82933141]
[1758000734717,0.32831955,115940.0,115930.0,0.82933141]
[1758000738096,0.01620524,115940.0,115930.0,0.82933141]
[1758000738301,0.32634955,115940.0,115930.0,0.82933141]
[1758000738549,0.31767136,115940.0,115930.0,0.82933141]
[1758000738770,0.31964136,115940.0,115930.0,0.82933141]
[1758000740353,0.35328339,115940.0,115930.0,0.40440141]
[1758000740763,0.35328339,115940.0,115930.0,0.66004141]
[1758000740979,0.35328339,115940.0,115930.0,0.80440141]
[1758000741771,0.35328339,115940.0,115930.0,0.66004141]
[1758000741965,0.35328339,115940.0,115930.0,0.80440141]
[1758000742452,0.04116908,115940.0,115930.0,0.80440141]
[1758000742671,0.35328339,115940.0,115930.0,0.80440141]
[1758000743536,0.35328339,115940.0,115930.0,0.66004141]
[1758000743988,0.5257864,115940.0,115930.0,0.26004141]
[1758000744212,0.5257864,115940.0,115930.0,0.40440141]
[1758000744438,0.55171587,115940.0,115930.0,0.40440141]
[1758000744683,0.5257864,115940.0,115930.0,0.40440141]
[1758000745134,0.55171587,115940.0,115930.0,0.40440141]
[1758000745352,0.5257864,115940.0,115930.0,0.40440141]
[1758000745542,0.55171588,115940.0,115930.0,0.40440141]
[1758000746028,0.5257864,115940.0,115930.0,0.40440141]
[1758000746250,0.55171588,115940.0,115930.0,0.40440141]
[1758000746468,0.5257864,115940.0,115930.0,0.40440141]
[1758000746687,0.55171588,115940.0,115930.0,0.40440141]
[1758000746910,0.5257864,115940.0,115930.0,0.40440141]
[1758000747389,0.55171588,115940.0,115930.0,0.40440141]
[1758000747571,0.5257864,115940.0,115930.0,0.40440141]
[1758000747799,0.55171587,115940.0,115930.0,0.40440141]
[1758000748060,0.5257864,115940.0,115930.0,0.40440141]
[1758000748290,0.5257864,115940.0,115930.0,0.08752352]
[1758000748510,0.5257864,115940.0,115930.0,0.40440141]
[1758000750103,0.55171588,115940.0,115930.0,0.40440141]
[1758000750604,0.5257864,115940.0,115930.0,0.40440141]
[1758000754857,0.21367209,115940.0,115930.0,0.40440141]
[1758000755086,0.5257864,115940.0,115930.0,0.40440141]
[1758000755849,0.56483479,115940.0,115930.0,0.40440141]
[1758000757445,0.21367209,115940.0,115930.0,0.40440141]
[1758000757677,0.56483479,115940.0,115930.0,0.40440141]
[1758000758217,0.36261178,115940.0,115930.0,0.43042141]
[1758000758704,0.54029479,115940.0,115930.0,0.43042141]
[1758000758927,0.56490479,115940.0,115930.0,0.43042141]
[1758000759145,0.56490479,115940.0,115930.0,0.42834141]
[1758000759804,0.56490479,115940.0,115930.0,0.40440141]
[1758000760455,0.56490479,115940.0,115930.0,0.08752352]
[1758000760669,0.90490479,115940.0,115930.0,0.08752352]
[1758000760881,0.93083624,115940.0,115930.0,0.23188352]
[1758000761893,0.90622624,115940.0,115930.0,0.25790352]
[1758000762653,0.93083624,115940.0,115930.0,0.25790352]
[1758000763434,0.93083624,115940.0,115930.0,0.23188352]
[1758000763636,0.59083624,115940.0,115930.0,0.23188352]
[1758000764908,0.93083624,115940.0,115930.0,0.08752352]
[1758000765120,0.93083624,115940.0,115930.0,0.23188352]
[1758000767039,0.57967354,115940.0,115930.0,0.23188352]
[1758000767192,0.73175323,115940.0,115930.0,0.43042141]
[1758000767399,0.90104624,115940.0,115930.0,0.43042141]
[1758000770038,0.90301624,115940.0,115930.0,0.25790352]
[1758000770284,0.93083624,115940.0,115930.0,0.23188352]
[1758000783446,0.93083624,115940.0,115930.0,0.29820352]
[1758000784137,0.93083624,115940.0,115930.0,0.32482352]
[1758000784348,0.90622624,115940.0,115930.0,0.32482352]
[1758000785885,0.92887624,115940.0,115930.0,0.32482352]
[1758000786400,0.92887624,115940.0,115930.0,0.32284352]
[1758000788710,0.92887624,115940.0,115930.0,0.29820352]
[1758000789577,0.90622624,115940.0,115930.0,0.32482352]
[1758000789785,0.90425624,115940.0,115930.0,0.32482352]
[1758000789993,0.89535421,115940.0,115930.0,0.32482352]
[1758000790201,0.89738421,115940.0,115930.0,0.32482352]
[1758000791679,0.90612405,115940.0,115930.0,0.32482352]
[1758000792467,0.92877405,115940.0,115930.0,0.32284352]
[1758000793097,0.92877405,115940.0,115930.0,0.29820352]
[1758000794724,0.92877405,115940.0,115930.0,0.32284352]
[1758000795177,0.54972135,115940.0,115930.0,0.49734141]
[1758000795458,0.90088405,115940.0,115930.0,0.49734141]
[1758000795626,0.90388405,115940.0,115930.0,0.49734141]
[1758000796170,0.90591405,115940.0,115930.0,0.49734141]
[1758000797907,0.90591405,115940.0,115930.0,0.84850411]
[1758000797908,0.37721834,115940.0,115930.0,0.84850411]
[1758000798108,0.37721834,115940.0,115930.0,0.84980411]
[1758000798344,0.37721834,115940.0,115930.0,0.49864141]
[1758000798786,0.03721834,115940.0,115930.0,0.84980411]
[1758000798954,0.37721834,115940.0,115930.0,0.49864141]
[1758000799379,0.72838104,115940.0,115930.0,0.49734141]
[1758000800334,0.37721834,115940.0,115930.0,0.49734141]
[1758000800535,0.72838104,115940.0,115930.0,0.49734141]
[1758000801080,0.37721834,115940.0,115930.0,0.49734141]
[1758000802529,0.37721834,115940.0,115930.0,0.89734141]
[1758000802738,0.37721834,115940.0,115930.0,0.75428141]
[1758000802979,0.37721834,115940.0,115930.0,0.89860141]
[1758000803162,0.37721834,115940.0,115930.0,0.89730141]
[1758000803691,0.37721834,115940.0,115930.0,0.75298141]
[1758000804342,0.72838104,115940.0,115930.0,0.89730141]
[1758000804547,0.73138104,115940.0,115930.0,0.89730141]
[1758000805986,0.73341104,115940.0,115930.0,0.75100141]
[1758000806192,0.73341104,115940.0,115930.0,0.89730141]
[1758000807575,0.73138104,115940.0,115930.0,0.89730141]
[1758000808031,0.73341104,115940.0,115930.0,0.89730141]
[1758000808232,0.73341104,115940.0,115930.0,0.75298141]
[1758000808429,0.73341104,115940.0,115930.0,0.89730141]
[1758000808812,0.73341104,115940.0,115930.0,0.75298141]
[1758000809043,0.92856405,115940.0,115930.0,0.29816352]
[1758000809375,0.92856405,115940.0,115930.0,0.69816352]
[1758000809564,0.92856405,115940.0,115930.0,0.89687141]
[1758000809791,0.90388405,115940.0,115930.0,0.89687141]
[1758000811104,0.72838104,115940.0,115930.0,0.89687141]
[1758000811501,0.90088405,115940.0,115930.0,0.75255141]
[1758000811752,0.90395405,115940.0,115930.0,0.89687141]
[1758000812059,0.90592405,115940.0,115930.0,0.89687141]
[1758000812239,0.92884405,115940.0,115930.0,0.89687141]
[1758000812446,0.92884405,115940.0,115930.0,0.89479141]
[1758000813780,0.57571135,115940.0,115930.0,0.89687141]
[1758000813925,0.92884405,115940.0,115930.0,0.89687141]
[1758000814593,0.92884405,115940.0,115930.0,0.29816352]
[1758000815604,0.92884405,115940.0,115930.0,0.47068141]
[1758000815826,0.88980992,115940.0,115930.0,0.32636141]
[1758000816031,0.88980992,115940.0,115930.0,0.47068141]
[1758000816687,0.86688992,115940.0,115930.0,0.49479141]
[1758000817128,0.88980992,115940.0,115930.0,0.32227352]
[1758000817437,0.37721834,115940.0,115930.0,0.49687141]
[1758000818715,0.37721834,115940.0,115930.0,0.89687141]
[1758000819710,0.38028834,115940.0,115930.0,0.89687141]
[1758000819961,0.38225834,115940.0,115930.0,0.89687141]
[1758000820535,0.38028834,115940.0,115930.0,0.89687141]
[1758000821188,0.68934691,115940.0,115930.0,0.89687141]
[1758000821392,0.69241691,115940.0,115930.0,0.89687141]
[1758000821548,0.38028834,115940.0,115930.0,0.89687141]
[1758000822780,0.57768135,115940.0,115930.0,0.69812352]
[1758000823201,0.88980992,115940.0,115930.0,0.15384352]
[1758000823622,0.88980992,115940.0,115930.0,0.29812352]
[1758000826054,0.88980992,115940.0,115930.0,0.15384352]
[1758000826502,0.17254766,115910.0,115900.0,0.23149]
[1758000826708,0.51263623,115910.0,115900.0,0.55394352]
[1758000826910,0.51263623,115910.0,115900.0,0.72233352]
[1758000827135,0.85263623,115910.0,115900.0,0.57805352]
[1758000827342,0.87867214,115910.0,115900.0,0.72223352]
[1758000828273,0.87867214,115910.0,115900.0,0.57995352]
[1758000828483,0.87867214,115910.0,115900.0,0.72423352]
[1758000828872,0.87867214,115910.0,115900.0,0.72723352]
[1758000829082,0.87867214,115910.0,115900.0,0.15884352]
[1758000829526,0.56654357,115910.0,115900.0,0.30312352]
[1758000829731,0.87867214,115910.0,115900.0,0.30312352]
[1758000830148,0.87867214,115910.0,115900.0,0.30012352]
[1758000830289,0.87867214,115910.0,115900.0,0.30112352]
[1758000831073,0.87867214,115910.0,115900.0,0.29912352]
[1758000832753,0.36603591,115910.0,115900.0,0.32531352]
[1758000832956,0.36603591,115910.0,115900.0,0.89787607]
[1758000833160,0.36603591,115910.0,115900.0,0.89917607]
[1758000835016,0.36603591,115910.0,115900.0,0.89787607]
[1758000835357,0.36603591,115910.0,115900.0,0.89917607]
[1758000837253,0.02603591,115910.0,115900.0,1.21130464]
[1758000837888,0.02593591,115910.0,115900.0,1.21130464]
[1758000838097,0.3401,115920.0,115910.0,0.17254766]
[1758000838308,0.36603149,115920.0,115910.0,0.28614118]
[1758000838746,0.36603149,115920.0,115910.0,0.68614118]
[1758000839682,0.36703149,115920.0,115910.0,0.68614118]
[1758000840313,0.36803149,115920.0,115910.0,0.68614118]
[1758000840714,0.36803149,115920.0,115910.0,0.68744118]
[1758000841545,0.36703149,115920.0,115910.0,0.68744118]
[1758000841744,0.36803149,115920.0,115910.0,0.68744118]
[1758000842526,0.36703149,115920.0,115910.0,0.68744118]
[1758000842940,0.36803149,115920.0,115910.0,0.68744118]
[1758000843292,0.36703149,115920.0,115910.0,0.68744118]
[1758000843440,0.36703149,115920.0,115910.0,0.68944118]
[1758000844009,0.36603149,115920.0,115910.0,0.68944118]
[1758000844198,0.36603149,115920.0,115910.0,0.69044118]
[1758000848009,0.36603149,115920.0,115910.0,0.83476118]
[1758000849233,0.0001,115920.0,115910.0,1.15538975]
[1758000849443,0.3401,115930.0,115920.0,0.17253278]
[1758000849695,0.36602914,115930.0,115920.0,0.4295263]
[1758000850730,0.36602914,115930.0,115920.0,0.4305263]
[1758000851248,0.36602914,115930.0,115920.0,0.8305263]
[1758000851627,0.36602914,115930.0,115920.0,0.6862463]
[1758000852507,0.36602914,115930.0,115920.0,0.8305263]
[1758000854686,0.36602914,115930.0,115920.0,0.6862463]
[1758000854976,0.37128914,115930.0,115920.0,0.6862463]
[1758000855168,0.37128914,115930.0,115920.0,0.8968463]
[1758000855528,0.37128914,115930.0,115920.0,0.7525663]
[1758000855698,0.37128914,115930.0,115920.0,0.8968463]
[1758000855898,0.37128914,115930.0,115920.0,0.7525663]
[1758000856117,0.37128914,115930.0,115920.0,0.8968463]
[1758000856328,0.70703771,115930.0,115920.0,0.8948563]
[1758000859856,0.70703771,115930.0,115920.0,0.8968463]
[1758000860293,0.67815771,115930.0,115920.0,0.8968463]
[1758000860499,0.36602914,115930.0,115920.0,0.8968463]
[1758000860679,0.36912914,115930.0,115920.0,0.8968463]
[1758000862231,0.54380703,115930.0,115920.0,0.8968463]
[1758000863404,0.39490914,115930.0,115920.0,0.8968463]
[1758000864444,0.56742703,115930.0,115920.0,0.7525663]
[1758000864792,0.39490914,115930.0,115920.0,0.8968463]
[1758000865970,0.70703771,115930.0,115920.0,0.8968463]
[1758000866734,0.70703771,115930.0,115920.0,0.8948563]
[1758000866945,0.70703771,115930.0,115920.0,0.8968463]
[1758000867120,0.39490914,115930.0,115920.0,0.8968463]
[1758000867334,0.70703771,115930.0,115920.0,0.8968463]
[1758000867724,0.70703771,115930.0,115920.0,0.7505763]
[1758000867901,0.70703771,115930.0,115920.0,0.8716563]
[1758000868628,0.56742703,115930.0,115920.0,0.15484352]
[1758000868887,0.8795556,115930.0,115920.0,0.29912352]
[1758000873133,0.8795556,115930.0,115920.0,0.69912352]
[1758000876395,0.8795556,115930.0,115920.0,0.29912352]
[1758000877888,0.9186597,115930.0,115920.0,0.29912352]
[1758000880162,0.9186597,115930.0,115920.0,0.15484352]
[1758000880368,0.9186597,115930.0,115920.0,0.29912352]
[1758000881044,0.74614181,115930.0,115920.0,0.4716563]
[1758000881261,0.37128914,115930.0,115920.0,0.4982863]
[1758000881464,0.71726181,115930.0,115920.0,0.4982863]
[1758000882004,0.36602914,115930.0,115920.0,0.84951897]
[1758000882214,0.02602914,115930.0,115920.0,0.85081897]
[1758000882396,0.02602914,115930.0,115920.0,0.84951897]
[1758000882614,0.02602914,115930.0,115920.0,0.4982863]
[1758000884301,0.02602914,115930.0,115920.0,0.8982863]
[1758000888540,0.02602914,115930.0,115920.0,1.24951897]
[1758000889492,0.02602914,115930.0,115920.0,0.8982863]
[1758000896304,0.02914914,115930.0,115920.0,0.8982863]
[1758000896662,0.02602914,115930.0,115920.0,0.8982863]
[1758000899403,0.37726181,115930.0,115920.0,0.8982863]
[1758000899577,0.38033181,115930.0,115920.0,0.8982863]
[1758000900402,0.38231181,115930.0,115920.0,0.8982863]
[1758000902959,0.38033181,115930.0,115920.0,0.8982863]
[1758000905384,0.02909914,115930.0,115920.0,0.8982863]
[1758000905585,0.38033181,115930.0,115920.0,0.8982863]
[1758000905757,0.38231181,115930.0,115920.0,0.8982863]
[1758000906936,0.38231181,115930.0,115920.0,0.7540063]
[1758000907132,0.38231181,115930.0,115920.0,0.8982863]
[1758000907656,0.03107914,115930.0,115920.0,0.8982863]
[1758000907856,0.38231181,115930.0,115920.0,0.8982863]
[1758000909427,0.03107914,115930.0,115920.0,0.8982863]
[1758000909639,0.38231181,115930.0,115920.0,0.8982863]
[1758000910494,0.03107914,115930.0,115920.0,0.8982863]
[1758000911533,0.02909914,115930.0,115920.0,0.8982863]
[1758000912589,0.03107914,115930.0,115920.0,0.8982863]
[1758000913257,0.03107914,115930.0,115920.0,0.7540063]
[1758000913460,0.03107914,115930.0,115920.0,0.8982863]
[1758000915229,0.5792597,115930.0,115920.0,0.8982863]
[1758000915440,0.5792597,115930.0,115920.0,0.8962863]
[1758000915700,0.40674181,115930.0,115920.0,0.8962863]
[1758000916098,0.38231181,115930.0,115920.0,0.8983063]
[1758000918735,0.03107914,115930.0,115920.0,0.8983063]
[1758000918908,0.38231181,115930.0,115920.0,0.8983063]
[1758000923634,0.38033181,115930.0,115920.0,0.8983063]
[1758000926425,0.37726181,115930.0,115920.0,0.8983063]
[1758000926626,0.02602914,115930.0,115920.0,0.8983063]
[1758000926855,0.02602914,115930.0,115920.0,1.24953897]
[1758000927215,0.02602914,115930.0,115920.0,0.8983063]
[1758000927391,0.02602914,115930.0,115920.0,1.24953897]
[1758000927610,0.02602914,115930.0,115920.0,0.8983063]